fUST/lending_fUST_20250731
["ID","MTS","AMOUNT","RATE_DAILY","PERIOD"]
[376279099,1753915844442,-460.0,0.00022361,2]
[376279101,1753915844451,-676.38,0.00022363,2]
[376279103,1753915844460,-163.73750526,0.00022364,2]
[376279105,1753915844469,-151.0,0.00022364,2]
[376279107,1753915844478,-285.17728868,0.00022364,2]
[376279109,1753915844488,-151.0,0.00022364,2]
[376279111,1753915844497,-471.0,0.00022364,2]
[376279113,1753915844506,-1066.5,0.00022375,2]
[376279115,1753915844515,-460.0,0.00022375,2]
[376279117,1753915844524,-606.21,0.00022375,2]
[376279119,1753915844533,-668.51,0.00022376,2]
[376279121,1753915844542,-605.0,0.00022376,2]
[376279123,1753915844551,-460.0,0.00022376,2]
[376279125,1753915844561,-151.0,0.00022378,7]
[376279127,1753915844570,-223.70295687,0.0002239,2]
[376279129,1753915844579,-853.148209,0.000224,2]
[376279131,1753915844589,-151.0,0.000224,7]
[376279133,1753915844599,-745.049657,0.00022454,2]
[376279135,1753915844608,-500.0,0.00022473,2]
[376279137,1753915844617,-500.0,0.00022473,2]
[376279139,1753915844627,-500.0,0.00022473,2]
[376279141,1753915844637,-239.51360798,0.00022489,2]
[376279143,1753915844647,-500.0,0.00022489,2]
[376279145,1753915844656,-599.68533143,0.00022489,2]
[376279147,1753915844666,-500.0,0.00022489,2]
[376279149,1753915844675,-500.0,0.00022489,2]
[376279151,1753915844685,-432.90507801,0.00022489,2]
[376279153,1753915844694,-500.0,0.00022489,2]
[376279155,1753915844704,-500.0,0.00022489,2]
[376279157,1753915844713,-500.0,0.00022489,2]
[376279159,1753915844723,-500.0,0.00022489,2]
[376279161,1753915844732,-500.0,0.00022489,2]
[376279163,1753915844741,-500.0,0.00022489,2]
[376279165,1753915844750,-500.0,0.00022489,2]
[376279167,1753915844760,-500.0,0.00022489,2]
[376279169,1753915844769,-500.0,0.00022489,2]
[376279171,1753915844778,-500.0,0.00022489,2]
[376279173,1753915844788,-515.01325474,0.00022489,2]
[376279175,1753915844797,-500.0,0.00022489,2]
[376279177,1753915844807,-500.0,0.00022489,2]
[376279179,1753915844817,-47593.68381465,0.0002249,7]
[376279181,1753915844830,-2222.85,0.0002249,7]
[376279184,1753915844842,-290.75999998,0.0002249,7]
[376279186,1753915844853,-9231.170822,0.0002249,7]
[376279198,1753915844960,-460.0,0.00021538,2]
[376279200,1753915844970,-128393.57416664,0.0002249,7]
[376279202,1753915844979,-151.0,0.0002249,7]
[376279204,1753915844989,-1054.345424,0.0002249,7]
[376279206,1753915844998,-1054.345424,0.0002249,7]
[376279208,1753915845007,-226.892277,0.0002249,7]
[376279210,1753915845017,-226.892277,0.0002249,7]
[376279212,1753915845026,-151.0,0.0002249,7]
[376279215,1753915845037,-151.0,0.0002249,7]
[376279217,1753915845047,-151.0,0.0002249,7]
[376279219,1753915845057,-151.0,0.0002249,7]
[376279220,1753915845066,-151.0,0.0002249,7]
[376279223,1753915845077,-151.0,0.0002249,7]
[376279225,1753915845087,-151.0,0.0002249,7]
[376279226,1753915845096,-151.0,0.0002249,7]
[376279229,1753915845105,-300.872842,0.0002249,7]
[376279231,1753915845115,-300.872842,0.0002249,7]
[376279233,1753915845125,-151.0,0.0002249,7]
[376279234,1753915845134,-296.156044,0.0002249,7]
[376279236,1753915845144,-296.156044,0.0002249,7]
[376279238,1753915845155,-151.0,0.0002249,7]
[376279240,1753915845164,-1309.28,0.00022495,2]
[376279243,1753915845174,-602.79,0.00022495,2]
[376279245,1753915845183,-482.65,0.00022495,2]
[376279247,1753915845192,-460.0,0.00022495,2]
[376279249,1753915845201,-840.31,0.000225,7]
[376279250,1753915845210,-1337.36557719,0.000225,7]
[376285028,1753916162294,150.0,0.00021731,30]
[376285032,1753916512451,150.0,0.00021685,30]
[376285033,1753916593404,150.0,0.00021739,30]
[376285036,1753916672144,150.0,0.00021738,30]
[376285037,1753916751912,150.0,0.00021743,30]
[376285039,1753916767359,173.304828,0.00013699,2]
[376285040,1753916832172,150.0,0.00021747,30]
[376285041,1753916849160,-1200.0,0.00020165,2]
[376285042,1753916849184,-300.0,0.00020165,2]
[376285043,1753916849206,-460.0,0.00020166,2]
[376285044,1753916849228,-358.27,0.00020166,2]
[376285045,1753916849250,-460.0,0.00020166,2]
[376285046,1753916849276,-460.25161865,0.00020166,2]
[376285047,1753916849297,-598.76,0.00020166,2]
[376285048,1753916849318,-460.98261504,0.00020166,2]
[376285049,1753916849341,-460.0,0.00020166,2]
[376285050,1753916849364,-460.0,0.00020166,2]
[376285051,1753916849386,-460.0,0.00020166,2]
[376285052,1753916849412,-460.0,0.00020166,2]
[376285053,1753916849435,-460.0,0.00020166,2]
[376285054,1753916849455,-263.98566339,0.00020166,2]
[376285055,1753916859169,10000.0,0.00019279,2]
[376285056,1753916912944,150.0,0.0002176,30]
[376285060,1753917007316,150.0,0.00021708,30]
[376285091,1753917032279,-3464.44680709,0.00019964,2]
[376285093,1753917032291,-1535.55319291,0.00019964,2]
[376285095,1753917032300,-177.94208725,0.00020065,2]
[376285097,1753917032313,-215.0,0.00020165,2]
[376285099,1753917032324,-196.01433661,0.00020166,2]
[376285101,1753917032334,-460.0,0.00020166,2]
[376285103,1753917032343,-460.0,0.00020166,2]
[376285105,1753917032353,-460.0,0.00020166,2]
[376285107,1753917032363,-540.14,0.00020166,2]
[376285109,1753917032372,-460.0,0.00020166,2]
[376285112,1753917032381,-578.97,0.00020166,2]
[376285114,1753917032391,-460.0,0.00020166,2]
[376285116,1753917032400,-460.0,0.00020166,2]
[376285118,1753917032410,-589.04,0.00020166,2]
[376285119,1753917032419,-460.0,0.00020166,2]
[376285121,1753917032428,-460.0,0.00020166,2]
[376285124,1753917032438,-460.0,0.00020166,2]
[376285126,1753917032447,-460.0,0.00020166,2]
[376285128,1753917032456,-460.0,0.00020166,2]
[376285130,1753917032465,-460.0,0.00020166,2]
[376285132,1753917032474,-460.0,0.00020166,2]
[376285134,1753917032483,-460.0,0.00020166,2]
[376285136,1753917032492,-460.0,0.00020166,2]
[376285137,1753917032502,-460.0,0.00020166,2]
[376285139,1753917032511,-460.0,0.00020166,2]
[376285141,1753917032521,-460.0,0.00020166,2]
[376285143,1753917032530,-460.0,0.00020166,2]
[376285145,1753917032539,-460.0,0.00020166,2]
[376285147,1753917032548,-154.64,0.00020166,2]
[376285149,1753917032558,-460.0,0.00020166,2]
[376285151,1753917032567,-42575.83009382,0.00020166,2]
[376285153,1753917032578,-682.92,0.00020167,2]
[376285155,1753917032587,-460.0,0.00020167,2]
[376285157,1753917032597,-460.0,0.00020167,2]
[376285159,1753917032606,-460.0,0.00020167,2]
[376285161,1753917032615,-460.0,0.00020167,2]
[376285163,1753917032624,-460.0,0.00020167,2]
[376285165,1753917032637,-460.0,0.00020167,2]
[376285167,1753917032648,-460.0,0.00020167,2]
[376285169,1753917032658,-460.0,0.00020167,2]
[376285171,1753917032668,-460.0,0.00020167,2]
[376285173,1753917032678,-460.0,0.00020167,2]
[376285175,1753917032687,-460.0,0.00020167,2]
[376285177,1753917032696,-460.0,0.00020167,2]
[376285179,1753917032705,-460.0,0.00020167,2]
[376285181,1753917032714,-436.37538329,0.00020167,2]
[376285183,1753917032723,-460.0,0.00020167,2]
[376285185,1753917032733,-460.0,0.00020167,2]
[376285187,1753917032742,-460.0,0.00020167,2]
[376285189,1753917032751,-460.0,0.00020167,2]
[376285191,1753917032760,-460.0,0.00020167,2]
[376285192,1753917032769,-460.0,0.00020167,2]
[376285194,1753917032778,-460.0,0.00020167,2]
[376285196,1753917032787,-460.0,0.00020167,2]
[376285197,1753917032797,-460.0,0.00020167,2]
[376285198,1753917032806,-460.0,0.00020167,2]
[376285199,1753917032816,-500.0,0.00020167,2]
[376285201,1753917032826,-460.0,0.00020167,2]
[376285203,1753917032836,-460.0,0.00020168,2]
[376285205,1753917032846,-1309.75,0.0002017,2]
[376285206,1753917032856,-460.0,0.0002017,2]
[376285208,1753917032866,-460.0,0.0002017,2]
[376285210,1753917032876,-460.0,0.0002017,2]
[376285213,1753917032885,-571.72,0.0002017,2]
[376285215,1753917032894,-460.0,0.0002017,2]
[376285216,1753917032903,-460.0,0.0002017,2]
[376285218,1753917032913,-481.47,0.0002017,2]
[376285221,1753917032923,-460.0,0.0002017,2]
[376285223,1753917032932,-460.0,0.0002017,2]
[376285225,1753917032941,-460.0,0.0002017,2]
[376285227,1753917032951,-460.0,0.0002017,2]
[376285229,1753917032960,-460.0,0.0002017,2]
[376285231,1753917032969,-460.0,0.0002017,2]
[376285233,1753917032978,-460.0,0.0002017,2]
[376285234,1753917032987,-460.0,0.0002017,2]
[376285236,1753917032997,-460.0,0.0002017,2]
[376285238,1753917033006,-294.64980879,0.0002017,2]
[376285241,1753917033018,-165.35019121,0.0002017,2]
[376285243,1753917033028,-460.0,0.0002017,2]
[376285245,1753917033037,-460.0,0.0002017,2]
[376285247,1753917033047,-0.19021645,0.0002017,2]
[376285367,1753917040210,-459.80978355,0.0002017,2]
[376285369,1753917040220,-460.0,0.0002017,2]
[376285372,1753917040230,-460.0,0.0002017,2]
[376285373,1753917040239,-477.14,0.0002017,2]
[376285376,1753917040248,-460.0,0.0002017,2]
[376285378,1753917040258,-460.0,0.0002017,2]
[376285380,1753917040267,-460.0,0.0002017,2]
[376285381,1753917040276,-460.0,0.0002017,2]
[376285384,1753917040285,-460.0,0.0002017,2]
[376285386,1753917040294,-460.0,0.0002017,2]
[376285387,1753917040305,-460.0,0.0002017,2]
[376285390,1753917040317,-460.0,0.0002017,2]
[376285392,1753917040326,-460.0,0.0002017,2]
[376285394,1753917040337,-460.0,0.0002017,2]
[376285396,1753917040347,-460.0,0.00020171,2]
[376285398,1753917040356,-460.0,0.00020171,2]
[376285400,1753917040366,-500.0,0.00020173,2]
[376285402,1753917040375,-500.0,0.00020173,2]
[376285404,1753917040385,-173.304828,0.00020187,2]
[376285406,1753917040394,-463.020783,0.00020377,2]
[376285408,1753917040403,-460.0,0.0002044,2]
[376285410,1753917040413,-460.0,0.0002044,2]
[376285412,1753917040422,-540.14,0.0002044,2]
[376285414,1753917040431,-460.0,0.0002044,2]
[376285416,1753917040440,-589.04,0.0002044,2]
[376285418,1753917040449,-460.0,0.0002044,2]
[376285420,1753917040459,-460.0,0.0002044,2]
[376285422,1753917040468,-460.0,0.0002044,2]
[376285424,1753917040479,-460.0,0.0002044,2]
[376285426,1753917040488,-460.0,0.0002044,2]
[376285428,1753917040498,-460.0,0.0002044,2]
[376285430,1753917040507,-460.0,0.0002044,2]
[376285432,1753917040516,-460.0,0.0002044,2]
[376285434,1753917040525,-460.0,0.0002044,2]
[376285436,1753917040534,-356.46,0.0002044,2]
[376285438,1753917040544,-682.92,0.00020441,2]
[376285440,1753917040553,-314.60891328,0.00020441,2]
[376285442,1753917040562,-460.0,0.00020441,2]
[376285444,1753917040576,-460.0,0.00020441,2]
[376285447,1753917040592,-264.41,0.00020441,2]
[376285449,1753917040602,-263.08110409,0.00020441,2]
[376285451,1753917040611,-460.0,0.00020441,2]
[376285453,1753917040620,-460.0,0.00020441,2]
[376285455,1753917040630,-460.0,0.00020441,2]
[376285457,1753917040639,-460.0,0.00020441,2]
[376285459,1753917040649,-289.09,0.00020442,2]
[376285461,1753917040658,-1309.75,0.00020444,2]
[376285463,1753917040668,-571.72,0.00020444,2]
[376285465,1753917040677,-460.0,0.00020444,2]
[376285467,1753917040687,-460.0,0.00020444,2]
[376285469,1753917040696,-460.0,0.00020444,2]
[376285471,1753917040706,-600.92,0.00020444,2]
[376285473,1753917040715,-460.0,0.00020444,2]
[376285475,1753917040724,-460.0,0.00020444,2]
[376285477,1753917040733,-477.14,0.00020444,2]
[376285495,1753917040895,-460.0,0.00020444,2]
[376285498,1753917040915,-460.0,0.00020444,2]
[376285500,1753917040925,-460.0,0.00020444,2]
[376285502,1753917040934,-460.0,0.00020444,2]
[376285504,1753917040944,-460.0,0.00020444,2]
[376285507,1753917040954,-460.0,0.00020445,2]
[376285508,1753917040964,-200.0,0.00020568,15]
[376285510,1753917040973,-200.0,0.00020568,15]
[376285513,1753917040983,-200.0,0.00020568,15]
[376285515,1753917040992,-200.0,0.00020568,15]
[376285517,1753917041001,-200.0,0.00020568,15]
[376285519,1753917041011,-200.0,0.00020568,15]
[376285521,1753917041021,-200.0,0.00020568,15]
[376285523,1753917041030,-200.0,0.00020568,15]
[376285525,1753917041039,-200.0,0.00020568,15]
[376285527,1753917041049,-200.0,0.00020568,15]
[376285528,1753917041058,-540.14,0.00020714,2]
[376285531,1753917041068,-589.04,0.00020714,2]
[376285532,1753917041078,-460.0,0.00020714,2]
[376285534,1753917041087,-460.0,0.00020714,2]
[376285536,1753917041097,-682.92,0.00020715,2]
[376285538,1753917041106,-347.190662,0.00020715,2]
[376285541,1753917041118,-112.809338,0.00020715,2]
[376285543,1753917041128,-350.68420928,0.00020715,2]
[376285545,1753917041139,-109.31579072,0.00020715,2]
[376285547,1753917041148,-1309.75,0.00020718,2]
[376285549,1753917041158,-571.72,0.00020718,2]
[376285551,1753917041167,-460.0,0.00020718,2]
[376285553,1753917041177,-477.14,0.00020718,2]
[376285555,1753917041186,-460.0,0.00020718,2]
[376285557,1753917041195,-460.0,0.00020718,2]
[376285559,1753917041205,-460.0,0.00020719,2]
[376285561,1753917041214,-500.0,0.00020721,2]
[376285563,1753917041224,-500.0,0.00020721,2]
[376285565,1753917041234,-854.66052618,0.00020844,2]
[376285567,1753917041243,-434.95648613,0.00020988,2]
[376285570,1753917041254,-105.18351387,0.00020988,2]
[376285572,1753917041264,-589.04,0.00020988,2]
[376285574,1753917041273,-460.0,0.00020988,2]
[376285576,1753917041282,-460.0,0.00020988,2]
[376285578,1753917041291,-682.92,0.00020989,2]
[376285580,1753917041300,-460.0,0.00020989,2]
[376285582,1753917041313,-460.0,0.00020989,2]
[376285584,1753917041323,-1309.75,0.00020992,2]
[376285586,1753917041334,-571.72,0.00020992,2]
[376285588,1753917041343,-460.0,0.00020992,2]
[376285590,1753917041353,-477.14,0.00020992,2]
[376285592,1753917041361,-460.0,0.00020992,2]
[376285594,1753917041371,-460.0,0.00020992,2]
[376285596,1753917041380,-460.0,0.00020993,2]
[376285598,1753917041392,-500.0,0.00021059,2]
[376285600,1753917041401,-266.78454965,0.00021177,2]
[376285602,1753917041411,-540.14,0.00021262,2]
[376285604,1753917041420,-589.04,0.00021262,2]
[376285606,1753917041431,-460.0,0.00021262,2]
[376285608,1753917041442,-460.0,0.00021262,2]
[376285610,1753917041452,-682.92,0.00021263,2]
[376285612,1753917041461,-318.1,0.00021263,2]
[376285614,1753917041471,-460.0,0.00021263,2]
[376285616,1753917041480,-1309.75,0.00021266,2]
[376285618,1753917041490,-571.72,0.00021266,2]
[376285620,1753917041499,-460.0,0.00021266,2]
[376285622,1753917041509,-477.14,0.00021266,2]
[376285624,1753917041519,-460.0,0.00021266,2]
[376285626,1753917041529,-460.0,0.00021266,2]
[376285628,1753917041539,-460.0,0.00021267,2]
[376285630,1753917041548,-228.91,0.00021267,3]
[376285632,1753917041557,-500.0,0.00021273,2]
[376285634,1753917041566,-500.0,0.00021273,2]
[376285636,1753917041575,-500.0,0.00021273,2]
[376285638,1753917041586,-500.0,0.00021273,2]
[376285640,1753917041595,-500.0,0.00021273,2]
[376285643,1753917041608,-500.0,0.00021273,2]
[376285645,1753917041618,-25000.0,0.00021277,2]
[376285647,1753917041627,-151.0,0.00021277,2]
[376285649,1753917041637,-21588.60606017,0.00021277,2]
[376285651,1753917041646,-151.0,0.00021277,2]
[376285653,1753917041655,-2030.296672,0.00021277,2]
[376285655,1753917041664,-151.0,0.00021277,2]
[376285657,1753917041673,-151.0,0.00021277,2]
[376285659,1753917041682,-151.0,0.00021277,2]
[376285661,1753917041691,-151.0,0.00021277,2]
[376285663,1753917041699,-151.0,0.00021277,2]
[376285665,1753917041709,-151.0,0.00021277,2]
[376285667,1753917041717,-151.0,0.00021277,2]
[376285669,1753917041727,-151.0,0.00021277,2]
[376285671,1753917041736,-151.0,0.00021277,2]
[376285673,1753917041745,-151.0,0.00021277,2]
[376285674,1753917041754,-151.0,0.00021277,2]
[376285675,1753917041764,-151.0,0.00021277,2]
[376285676,1753917041773,-151.0,0.00021277,2]
[376285677,1753917041782,-151.0,0.00021277,2]
[376285678,1753917041791,-151.0,0.00021277,2]
[376285679,1753917041800,-151.0,0.00021277,2]
[376285680,1753917041809,-151.0,0.00021277,2]
[376285681,1753917041818,-151.0,0.00021277,2]
[376285682,1753917041827,-300.0,0.00021277,2]
[376285683,1753917041837,-300.0,0.00021277,2]
[376285684,1753917041846,-300.0,0.00021277,2]
[376285685,1753917041855,-300.0,0.00021277,2]
[376285686,1753917041865,-300.0,0.00021277,2]
[376285687,1753917041874,-300.0,0.00021277,2]
[376285688,1753917041883,-300.0,0.00021277,2]
[376285689,1753917041892,-300.0,0.00021277,2]
[376285690,1753917041901,-300.0,0.00021277,2]
[376285691,1753917041910,-300.0,0.00021277,2]
[376285692,1753917041919,-300.0,0.00021277,2]
[376285693,1753917041928,-300.0,0.00021277,2]
[376285694,1753917041938,-300.0,0.00021277,2]
[376285695,1753917041947,-300.0,0.00021277,2]
[376285696,1753917041956,-300.0,0.00021277,2]
[376285698,1753917041965,-300.0,0.00021277,2]
[376285700,1753917041974,-300.0,0.00021277,2]
[376285702,1753917041983,-300.0,0.00021277,2]
[376285704,1753917041993,-300.0,0.00021277,2]
[376285706,1753917042002,-300.0,0.00021277,2]
[376285708,1753917042011,-1206.03866463,0.00021332,2]
[376285710,1753917042021,-540.14,0.00021536,2]
[376285712,1753917042031,-589.04,0.00021536,2]
[376285714,1753917042040,-460.0,0.00021536,2]
[376285716,1753917042049,-460.0,0.00021536,2]
[376285718,1753917042059,-682.92,0.00021537,2]
[376285720,1753917042068,-460.0,0.00021537,2]
[376285722,1753917042078,-1309.75,0.0002154,2]
[376285724,1753917042088,-571.72,0.0002154,2]
[376285726,1753917042098,-460.0,0.0002154,2]
[376285728,1753917042107,-477.14,0.0002154,2]
[376285730,1753917042116,-460.0,0.0002154,2]
[376285732,1753917042125,-390.85,0.0002154,2]
[376285734,1753917042135,-460.0,0.00021541,2]
[376285736,1753917042144,-151.28821919,0.00021716,2]
[376285738,1753917042154,-449.054,0.00021768,2]
[376285740,1753917042163,-540.14,0.0002181,2]
[376285742,1753917042173,-589.04,0.0002181,2]
[376285744,1753917042182,-460.0,0.0002181,2]
[376285746,1753917042192,-460.0,0.0002181,2]
[376285748,1753917042201,-682.92,0.00021811,2]
[376285750,1753917042210,-460.0,0.00021811,2]
[376285753,1753917042220,-1309.75,0.00021814,2]
[376285755,1753917042229,-571.72,0.00021814,2]
[376285757,1753917042239,-460.0,0.00021814,2]
[376285758,1753917042248,-477.14,0.00021814,2]
[376285760,1753917042258,-460.0,0.00021814,2]
[376285762,1753917042266,-460.0,0.00021815,2]
[376285764,1753917042275,-151.0,0.00021816,2]
[376285766,1753917042285,-151.0,0.00021816,2]
[376285768,1753917042294,-534.0,0.00021816,2]
[376285770,1753917042303,-245.0,0.00021816,2]
[376285773,1753917042317,-245.0,0.00021816,2]
[376285775,1753917042327,-745.049657,0.0002182,2]
[376285777,1753917042337,-500.0,0.00021821,2]
[376285779,1753917042346,-511.05197968,0.00021821,2]
[376285781,1753917042357,-460.0,0.00021947,2]
[376285783,1753917042367,-460.0,0.00021947,2]
[376285784,1753917042376,-1202.31,0.00021947,2]
[376285787,1753917042386,-460.0,0.00021947,2]
[376285789,1753917042395,-467.74,0.00021947,2]
[376285791,1753917042405,-722.35,0.00021947,2]
[376285793,1753917042414,-460.0,0.00021947,2]
[376285795,1753917042423,-576.32,0.00021947,2]
[376285797,1753917042433,-151.0,0.00022,2]
[376285799,1753917042442,-238.38,0.00022,2]
[376285801,1753917042452,-214.95885286,0.00022035,2]
[376285803,1753917042462,-841.2246943,0.00022035,2]
[376285805,1753917042471,-216.14611358,0.00022035,2]
[376285807,1753917042480,-266.78454964,0.00022083,2]
[376285809,1753917042489,-540.14,0.00022084,2]
[376285811,1753917042498,-589.04,0.00022084,2]
[376285813,1753917042507,-460.0,0.00022084,2]
[376285815,1753917042518,-460.0,0.00022084,2]
[376285817,1753917042528,-682.92,0.00022085,2]
[376285819,1753917042538,-460.0,0.00022085,2]
[376285821,1753917042548,-1309.75,0.00022088,2]
[376285823,1753917042557,-571.72,0.00022088,2]
[376285825,1753917042567,-460.0,0.00022088,2]
[376285827,1753917042576,-477.14,0.00022088,2]
[376285829,1753917042586,-460.0,0.00022088,2]
[376285831,1753917042595,-460.0,0.00022089,2]
[376285833,1753917042604,-163.73750526,0.0002209,2]
[376285835,1753917042613,-151.0,0.0002209,2]
[376285837,1753917042623,-534.0,0.0002209,2]
[376285839,1753917042632,-500.0,0.00022155,2]
[376285842,1753917042641,-460.0,0.00022221,2]
[376285845,1753917042651,-1202.31,0.00022221,2]
[376285848,1753917042660,-460.0,0.00022221,2]
[376285851,1753917042669,-467.74,0.00022221,2]
[376285854,1753917042679,-722.35,0.00022221,2]
[376285856,1753917042688,-460.0,0.00022221,2]
[376285858,1753917042697,-576.32,0.00022221,2]
[376285860,1753917042708,-160.0,0.0002225,2]
[376285862,1753917042717,-540.14,0.00022358,2]
[376285864,1753917042726,-589.04,0.00022358,2]
[376285866,1753917042735,-460.0,0.00022358,2]
[376285868,1753917042745,-460.0,0.00022358,2]
[376285871,1753917042755,-682.92,0.00022359,2]
[376285873,1753917042763,-460.0,0.00022359,2]
[376285876,1753917042773,-151.0,0.00022359,7]
[376285878,1753917042782,-151.0,0.00022359,7]
[376285880,1753917042792,-151.0,0.00022359,7]
[376285882,1753917042801,-151.0,0.00022359,7]
[376285884,1753917042810,-168.028088,0.00022361,7]
[376285886,1753917042819,-168.028088,0.00022361,7]
[376285887,1753917042828,-151.0,0.00022361,7]
[376285890,1753917042837,-151.0,0.00022361,7]
[376285891,1753917042847,-258.361409,0.00022361,7]
[376285893,1753917042856,-151.0,0.00022361,7]
[376285896,1753917042866,-151.0,0.00022361,7]
[376285898,1753917042875,-151.0,0.00022361,7]
[376285899,1753917042885,-1309.75,0.00022362,2]
[376285902,1753917042894,-151.0,0.00022362,7]
[376285904,1753917042903,-571.72,0.00022362,2]
[376285906,1753917042912,-151.0,0.00022362,7]
[376285908,1753917042922,-158.04335135,0.00022362,2]
[376285910,1753917042931,-477.14,0.00022362,2]
[376285911,1753917042940,-151.0,0.00022362,7]
[376285914,1753917042950,-460.0,0.00022362,2]
[376285916,1753917042958,-460.0,0.00022363,2]
[376285918,1753917042968,-245.0,0.00022364,2]
[376285920,1753917042977,-534.0,0.00022364,2]
[376285922,1753917042986,-151.0,0.00022364,2]
[376285924,1753917042995,-151.0,0.00022364,2]
[376285926,1753917043004,-853.148209,0.000224,2]
[376285927,1753917043013,-497.38069,0.0002249,7]
[376285929,1753917043023,-497.38069,0.0002249,7]
[376285933,1753917043032,-151.0,0.0002249,7]
[376285935,1753917043041,-151.0,0.0002249,7]
[376285937,1753917043051,-634.316734,0.0002249,7]
[376285939,1753917043060,-634.316734,0.0002249,7]
[376285941,1753917043069,-151.0,0.0002249,7]
[376285943,1753917043080,-151.0,0.0002249,7]
[376285945,1753917043089,-234.9174,0.0002249,7]
[376285947,1753917043099,-615.80694847,0.00022495,2]
[376285949,1753917043108,-1202.31,0.00022495,2]
[376285951,1753917043117,-460.0,0.00022495,2]
[376285953,1753917043127,-467.74,0.00022495,2]
[376285955,1753917043136,-722.35,0.00022495,2]
[376285957,1753917043145,-460.0,0.00022495,2]
[376285958,1753917043154,-576.32,0.00022495,2]
[376285960,1753917043163,-291.31583295,0.00022495,2]
[376285962,1753917043172,-203.92108306,0.00022495,2]
[376285964,1753917043182,-151.0,0.00022495,2]
[376285966,1753917043190,-151.0,0.00022495,2]
[376285968,1753917043200,-173.81586048,0.00022495,2]
[376285970,1753917043209,-682.71442281,0.000225,7]
[376285972,1753917043218,-7869.88,0.000225,7]
[376285974,1753917043228,-238.38,0.0002257,2]
[376285976,1753917043237,-200.0,0.00022581,15]
[376285978,1753917043246,-200.0,0.00022581,15]
[376285980,1753917043256,-200.0,0.00022581,15]
[376285982,1753917043266,-200.0,0.00022581,15]
[376285984,1753917043275,-200.0,0.00022581,15]
[376285986,1753917043284,-200.0,0.00022581,15]
[376285988,1753917043294,-200.0,0.00022581,15]
[376285990,1753917043306,-200.0,0.00022581,15]
[376285993,1753917043318,-200.0,0.00022581,15]
[376285994,1753917043327,-200.0,0.00022581,15]
[376285997,1753917043337,-200.0,0.00022581,15]
[376285999,1753917043347,-200.0,0.00022581,15]
[376286001,1753917043356,-200.0,0.00022581,15]
[376286003,1753917043366,-200.0,0.00022581,15]
[376286005,1753917043375,-299.0,0.00022582,2]
[376286007,1753917043385,-540.14,0.00022632,2]
[376286009,1753917043394,-589.04,0.00022632,2]
[376286011,1753917043404,-460.0,0.00022632,2]
[376286013,1753917043413,-460.0,0.00022632,2]
[376286015,1753917043422,-682.92,0.00022633,2]
[376286017,1753917043431,-460.0,0.00022633,2]
[376286019,1753917043441,-1309.75,0.00022636,2]
[376286021,1753917043450,-151.0,0.00022636,7]